fUSD/lending_fUSD_20250814
["ID","MTS","AMOUNT","RATE_DAILY","PERIOD"]
[379110267,1755147045225,-408.0,0.0003798,120]
[379110269,1755147045234,-408.0,0.0003798,120]
[379110271,1755147045243,-151.66,0.00037985,60]
[379110273,1755147045252,-162.63,0.00037985,60]
[379110275,1755147045261,-159.17,0.00037985,60]
[379110277,1755147045271,-408.0,0.0003799,120]
[379110279,1755147045280,-408.0,0.0003799,120]
[379110281,1755147045289,-408.0,0.0003799,120]
[379110283,1755147045299,-150.54,0.00037992,60]
[379110285,1755147045308,-158.12,0.00037992,60]
[379110287,1755147045317,-150.96,0.00037994,60]
[379110289,1755147045326,-168.85,0.00037994,60]
[379110291,1755147045335,-3600.0,0.00038,39]
[379110293,1755147045345,-151106.74180038,0.00038,2]
[379110295,1755147045354,-156.0,0.00038,120]
[379110297,1755147045363,-300.0,0.00038,2]
[379110299,1755147045372,-300.0,0.00038,2]
[379110301,1755147045382,-300.0,0.00038,2]
[379110303,1755147045391,-332.67205605,0.00038,2]
[379110305,1755147045401,-154.0,0.00038,120]
[379110307,1755147045410,-1180.01128234,0.00038008,2]
[379110309,1755147045421,-630.1,0.00038008,60]
[379110311,1755147045432,-150.0,0.00038031,2]
[379110313,1755147045441,-449.38,0.00038034,120]
[379110315,1755147045450,-190.0,0.00038059,30]
[379110317,1755147045459,-478.0,0.00038059,30]
[379110319,1755147045469,-151.7,0.00038085,60]
[379110321,1755147045478,-162.63,0.00038085,60]
[379110323,1755147045487,-159.17,0.00038085,60]
[379110325,1755147045495,-150.0,0.00038089,2]
[379110327,1755147045505,-150.54,0.00038092,60]
[379110329,1755147045514,-158.12,0.00038092,60]
[379110331,1755147045523,-150.96,0.00038094,60]
[379110333,1755147045532,-168.85,0.00038094,60]
[379110335,1755147045541,-156.151956,0.00038096,7]
[379110337,1755147045550,-4132.694481,0.00038096,7]
[379110338,1755147045559,-4132.694481,0.00038096,7]
[379110340,1755147045568,-454.068238,0.00038096,7]
[379110342,1755147045577,-454.068238,0.00038096,7]
[379110344,1755147045586,-151.0,0.00038096,7]
[379110346,1755147045595,-151.0,0.00038096,7]
[379110348,1755147045605,-284.985035,0.00038096,7]
[379110350,1755147045613,-284.985035,0.00038096,7]
[379110352,1755147045623,-2132.512543,0.00038096,7]
[379110354,1755147045632,-2132.512543,0.00038096,7]
[379110356,1755147045641,-156.73643347,0.00038096,5]
[379110358,1755147045650,-150.0,0.00038119,2]
[379110360,1755147045659,-150.0,0.00038119,2]
[379110362,1755147045668,-150.0,0.00038123,2]
[379110364,1755147045677,-150.0,0.00038151,2]
[379110366,1755147045686,-150.0,0.00038159,2]
[379110368,1755147045694,-150.0,0.00038162,2]
[379110370,1755147045703,-150.0,0.00038166,2]
[379110372,1755147045712,-1246.35729821,0.00038172,2]
[379110374,1755147045723,-162.63,0.00038185,60]
[379110376,1755147045732,-159.17,0.00038185,60]
[379110378,1755147045741,-150.54,0.00038192,60]
[379110380,1755147045750,-158.12,0.00038192,60]
[379110382,1755147045760,-168.85,0.00038194,60]
[379110384,1755147045769,-150.0,0.00038206,2]
[379110386,1755147045778,-150.0,0.00038209,2]
[379110388,1755147045787,-150.0,0.00038245,2]
[379110390,1755147045796,-150.0,0.00038263,2]
[379110392,1755147045805,-150.0,0.00038264,2]
[379110394,1755147045814,-162.63,0.00038285,60]
[379110396,1755147045823,-159.17,0.00038285,60]
[379110398,1755147045834,-158.17281992,0.00038286,11]
[379110400,1755147045843,-150.54,0.00038292,60]
[379110402,1755147045852,-158.12,0.00038292,60]
[379110404,1755147045861,-168.85,0.00038294,60]
[379110406,1755147045871,-152.0,0.00038303,12]
[379110408,1755147045880,-1312.70331409,0.00038335,2]
[379110410,1755147045890,-150.0,0.00038353,2]
[379110412,1755147045899,-189.3,0.00038356,2]
[379110414,1755147045908,-1000.0,0.00038356,120]
[379110416,1755147045918,-1000.0,0.00038356,120]
[379110418,1755147045928,-1000.0,0.00038356,120]
[379110420,1755147045937,-1000.0,0.00038356,120]
[379110422,1755147045947,-1000.0,0.00038356,120]
[379110424,1755147045956,-1000.0,0.00038356,120]
[379110426,1755147045966,-1000.0,0.00038356,120]
[379110428,1755147045975,-1000.0,0.00038356,120]
[379110430,1755147045984,-1000.0,0.00038356,120]
[379110432,1755147045993,-1000.0,0.00038356,120]
[379110434,1755147046002,-314.65695601,0.00038356,120]
[379110436,1755147046011,-229.42135588,0.00038356,2]
[379110438,1755147046020,-162.63,0.00038385,120]
[379110440,1755147046029,-159.17,0.00038385,120]
[379110442,1755147046040,-150.54,0.00038392,120]
[379110444,1755147046049,-158.12,0.00038392,120]
[379110446,1755147046059,-152.0,0.00038437,8]
[379110448,1755147046070,-150.0,0.00038455,2]
[379110450,1755147046079,-13050.0,0.00038463,7]
[379110452,1755147046088,-297.029936,0.00038463,30]
[379110454,1755147046097,-297.029936,0.00038463,30]
[379110456,1755147046106,-151.0,0.00038463,30]
[379110458,1755147046115,-150.0,0.0003848,2]
[379110460,1755147046124,-162.63,0.00038485,120]
[379110462,1755147046134,-159.17,0.00038485,120]
[379110464,1755147046144,-150.54,0.00038492,120]
[379110466,1755147046153,-158.12,0.00038492,120]
[379110468,1755147046167,-150.0,0.00038496,2]
[379110470,1755147046180,-1379.04932996,0.00038499,2]
[379110472,1755147046189,-150.0,0.00038506,2]
[379110474,1755147046199,-150.0,0.00038519,2]
[379110476,1755147046208,-150.0,0.00038552,2]
[379110477,1755147046217,-150.0,0.00038583,2]
[379110478,1755147046226,-162.63,0.00038585,120]
[379110479,1755147046235,-159.17,0.00038585,120]
[379110480,1755147046244,-150.54,0.00038592,120]
[379110482,1755147046254,-158.12,0.00038592,120]
[379110484,1755147046263,-150.0,0.00038593,2]
[379110486,1755147046272,-150.0,0.00038597,2]
[379110488,1755147046281,-1445.39534584,0.00038663,2]
[379110490,1755147046290,-150.0,0.00038665,2]
[379110492,1755147046299,-150.0,0.00038667,2]
[379110494,1755147046308,-3545.44,0.00038669,2]
[379110496,1755147046317,-162.63,0.00038685,120]
[379110498,1755147046326,-159.17,0.00038685,120]
[379110500,1755147046335,-150.54,0.00038692,120]
[379110502,1755147046345,-158.19,0.00038692,120]
[379110504,1755147046355,-1100.0,0.000387,14]
[379110506,1755147046364,-150.0,0.00038701,2]
[379110508,1755147046373,-160.2509683,0.00038718,15]
[379110510,1755147046383,-150.0,0.00038783,2]
[379110512,1755147046392,-162.68,0.00038785,120]
[379110514,1755147046401,-159.17,0.00038785,120]
[379110516,1755147046410,-150.54,0.00038792,120]
[379110518,1755147046422,-1000.0,0.000388,7]
[379110520,1755147046431,-1400.0,0.000388,14]
[379110522,1755147046440,-150.0,0.00038815,2]
[379110524,1755147046449,-1511.74136171,0.00038826,2]
[379110526,1755147046459,-150.0,0.0003884,2]
[379110528,1755147046469,-1000.0,0.00038849,2]
[379110530,1755147046478,-151.0,0.00038851,30]
[379110532,1755147046487,-150.0,0.00038851,2]
[379110534,1755147046500,-475.386684,0.00038851,30]
[379110536,1755147046509,-475.386684,0.00038851,30]
[379110538,1755147046519,-150.0,0.0003886,2]
[379110540,1755147046529,-152.0,0.00038872,13]
[379110542,1755147046538,-150.0,0.00038876,2]
[379110544,1755147046547,-13657.32358184,0.00038882,120]
[379110546,1755147046556,-159.17,0.00038885,120]
[379110548,1755147046566,-248.5223,0.00038888,30]
[379110550,1755147046575,-150.54,0.00038892,120]
[379110552,1755147046586,-150.0,0.00038899,2]
[379110554,1755147046595,-3518.10875117,0.000389,120]
[379110556,1755147046604,-469.07645672,0.000389,120]
[379110558,1755147046613,-159.34830223,0.000389,2]
[379110560,1755147046622,-16512.83137713,0.000389,2]
[379110562,1755147046632,-4031.56297655,0.000389,2]
[379110564,1755147046641,-200.0,0.000389,14]
[379110566,1755147046651,-282.5797695,0.000389,2]
[379110568,1755147046659,-184.39342979,0.000389,2]
[379110570,1755147046668,-150.0,0.0003891,2]
[379110572,1755147046678,-2000.0,0.00038927,120]
[379110574,1755147046688,-150.0,0.00038936,2]
[379110576,1755147046697,-2028.0,0.00038936,2]
[379110578,1755147046706,-1254.0,0.00038936,2]
[379110580,1755147046715,-3369.0,0.00038936,2]
[379110582,1755147046725,-810.0,0.00038936,2]
[379110584,1755147046734,-982.0,0.00038936,2]
[379110586,1755147046744,-565.0,0.00038936,2]
[379110588,1755147046753,-1655.0,0.00038936,2]
[379110590,1755147046762,-1296.0,0.00038936,2]
[379110592,1755147046771,-598.0,0.00038936,2]
[379110595,1755147046788,-893.0,0.00038936,2]
[379110597,1755147046800,-1172.0,0.00038936,2]
[379110599,1755147046809,-21478.0,0.00038936,2]
[379110601,1755147046819,-4149.0,0.00038936,2]
[379110603,1755147046828,-6086.0,0.00038936,2]
[379110604,1755147046837,-159.17,0.00038985,120]
[379110606,1755147046846,-150.0,0.00038989,2]
[379110608,1755147046856,-1578.08737758,0.0003899,2]
[379110611,1755147046865,-150.54,0.00038992,120]
[379110613,1755147046874,-902.72,0.00038994,120]
[379110615,1755147046884,-150.0,0.00038995,2]
[379110617,1755147046894,-150.0,0.00038996,2]
[379110619,1755147046903,-150.0,0.00038996,2]
[379110621,1755147046912,-3600.0,0.00039,40]
[379110623,1755147046921,-55124.13417459,0.00039,10]
[379110625,1755147046930,-1162.34068657,0.00039,120]
[379110627,1755147046939,-151.0,0.00039,30]
[379110629,1755147046948,-151.0,0.00039,30]
[379110631,1755147046958,-503.449475,0.00039,30]
[379110633,1755147046967,-503.449475,0.00039,30]
[379110635,1755147046976,-151.0,0.00039,30]
[379110637,1755147046985,-1653418.9735304,0.00039,7]
[379111028,1755147051347,-716.0,0.00026936,2]
[379111030,1755147051356,-384.5384391,0.0003,120]
[379111032,1755147051366,-4826.58611076,0.00039,7]
[379111035,1755147051377,-5972.95339526,0.00039,7]
[379111037,1755147051388,-5966.3015762,0.00039,7]
[379111050,1755147051506,-5075.85154541,0.00039,7]
[379111052,1755147051518,-4068.368646,0.00039,7]
[379111141,1755147052352,-65.02170576,0.00036158,2]
[379111348,1755147243375,1116.37,0.000241,30]
[379111350,1755147308962,837.28,0.000241,30]
[379111352,1755147490655,154.62,0.00013699,2]
[379111353,1755147525971,-154.62,0.00021918,2]
[379111354,1755147525995,-1000.0,0.00022129,3]
[379111355,1755147526018,-300.0,0.00022129,2]
[379111356,1755147526041,-1200.0,0.00022348,2]
[379111357,1755147526065,-345.38,0.00022348,2]
[379111358,1755147621164,-503.0,0.000211,2]
[379111359,1755147621696,-517.0,0.000211,2]
[379111360,1755147621721,-250.0,0.00021564,2]
[379111361,1755147621751,-200.52759154,0.00021918,2]
[379111362,1755147621776,-1000.0,0.00022252,3]
[379111363,1755147621800,-250.0,0.00022252,2]
[379111364,1755147621823,-279.47240846,0.00022252,2]
[379111442,1755147976727,2751.5887017,0.00024,30]
[379111443,1755148007170,-162.7823751,0.00021,2]
[379111444,1755148007193,-503.0,0.000211,2]
[379111445,1755148007216,-179.19278,0.000211,2]
[379111446,1755148007237,-202.1862,0.000211,2]
[379111447,1755148007258,-151.0,0.00022139,2]
[379111448,1755148007280,-151.0,0.00022199,2]
[379111449,1755148007305,-151.0,0.00022257,2]
[379111450,1755148007329,-300.0,0.00022314,2]
[379111451,1755148007353,-781.54812031,0.00022376,3]
[379111452,1755148044385,-202.1862,0.00021,2]
[379111453,1755148044408,-151.0,0.00022104,2]
[379111454,1755148044429,-218.45187969,0.00022376,3]
[379111455,1755148044449,-160.48,0.000225,2]
[379111456,1755148044471,-503.0,0.00022572,3]
[379111457,1755148044492,-380.50790114,0.00022749,3]
[379111465,1755148187454,-503.0,0.000211,2]
[379111466,1755148187485,-503.0,0.0002265,3]
[379111473,1755148231796,-300.0,0.00022924,2]
[379111474,1755148231806,-1000.0,0.00022924,3]
[379111475,1755148231816,-250.0,0.000231,2]
[379111476,1755148231827,-300.0,0.00023156,2]
[379111477,1755148231837,-908.87721711,0.00023156,3]
[379111478,1755148231848,-91.12278289,0.00023156,3]
[379111479,1755148231858,-1200.0,0.00023208,2]
[379111480,1755148231868,-1200.0,0.00023511,2]
[379111481,1755148231878,-8.75184843,0.00023512,2]
[379111482,1755148231894,-142.24815157,0.00023512,2]
[379111483,1755148231905,-151.0,0.00023512,2]
[379111484,1755148231916,-151.0,0.00023512,2]
[379111485,1755148231925,-168.57119495,0.00023525,2]
[379111486,1755148231935,-1000.0,0.00023526,2]
[379111487,1755148231944,-471.86877289,0.00023526,2]
[379111488,1755148231955,-302.02713988,0.00023526,2]
[379111489,1755148231967,-418.54375762,0.00023526,2]
[379111490,1755148232001,-1132.87268275,0.00023526,2]
[379111491,1755148232012,-2532.71331793,0.00023526,2]
[379111492,1755148232076,-10391.51412893,0.00023526,2]
[379111493,1755148232086,-150.99,0.00024045,2]
[379111494,1755148232095,-503.0,0.000242,5]
[379111495,1755148232105,-784.7,0.00024231,2]
[379111496,1755148232114,-458.13769775,0.00024693,2]
[379111497,1755148232123,-211.86673127,0.00024693,2]
[379111498,1755148232134,-300.0,0.00025024,2]
[379111499,1755148232143,-500.0,0.00025024,2]
[379111500,1755148232155,-2500.0,0.00025024,2]
[379111501,1755148232164,-1000.0,0.00025024,3]
[379111502,1755148232174,-250.0,0.00025024,2]
[379111503,1755148232184,-434.00662763,0.00025068,2]
[379111504,1755148232193,-334.0,0.00025188,2]
[379111505,1755148232203,-300.0,0.00025217,2]
[379111506,1755148232212,-500.0,0.00025217,2]
[379111507,1755148232221,-2500.0,0.00025217,2]
[379111508,1755148232231,-1000.0,0.00025217,3]
[379111509,1755148232240,-250.0,0.00025217,2]
[379111510,1755148232250,-1000.0,0.00025626,2]
[379111511,1755148232259,-503.0,0.0002575,6]
[379111512,1755148232269,-503.0,0.000273,8]
[379111513,1755148232278,-500.0,0.0002735,2]
[379111514,1755148232287,-1254.0,0.00028001,2]
[379111515,1755148232297,-2028.0,0.00028001,2]
[379111516,1755148232306,-1748.47851106,0.00028001,2]
[379111517,1755148232322,-1620.52148894,0.00028001,2]
[379111518,1755148232331,-723.259,0.00028001,2]
[379111519,1755148232341,-982.0,0.00028001,2]
[379111520,1755148232351,-598.0,0.00028001,2]
[379111521,1755148232361,-1172.0,0.00028001,2]
[379111522,1755148232369,-348.262,0.00028001,2]
[379111523,1755148232379,-4149.0,0.00028026,2]
[379111524,1755148232387,-6086.0,0.00028026,2]
[379111525,1755148232396,-2657.63,0.00028051,2]
[379111526,1755148232407,-810.0,0.00028126,2]
[379111527,1755148232416,-1000.0,0.00028253,2]
[379111528,1755148232425,-166.05,0.00028254,2]
[379111529,1755148232434,-250.0,0.00028254,2]
[379111530,1755148232443,-4779.49404476,0.00028254,2]
[379111547,1755148237365,-2221.0,0.00028254,2]
[379111548,1755148237378,-274.39523222,0.00028254,2]
[379111549,1755148237447,-2980.01325932,0.00028254,2]
[379111550,1755148237479,-2151.8874637,0.00028254,2]
[379111551,1755148237490,-1694.25,0.00028254,2]
[379111552,1755148237504,-337.03,0.00028396,30]
[379111553,1755148237514,-158.24,0.0002851,2]
[379111554,1755148237523,-300.0,0.0002851,2]
[379111555,1755148237532,-158.24,0.00028653,2]
[379111556,1755148237542,-158.24,0.00028795,2]
[379111557,1755148237551,-503.0,0.0002885,9]
[379111558,1755148237560,-280.70993972,0.00029088,120]
[379111559,1755148237571,-158.69,0.00029101,2]
[379111560,1755148237581,-482.34068136,0.00029193,2]
[379111561,1755148237593,-302.35931864,0.00029193,2]
[379111562,1755148237603,-200.0,0.00029269,2]
[379111563,1755148237618,-72.94703423,0.00029655,7]
[379111564,1755148237632,-97.05296577,0.00029655,7]
[379111565,1755148237643,-500.0,0.0002972,5]
[379111566,1755148237654,-243.61185291,0.00029755,2]
[379111567,1755148237689,-56.38814709,0.00029755,2]
[379111568,1755148237700,-600.0,0.00029755,2]
[379111569,1755148237710,-160.0,0.00029755,2]
[379111570,1755148237720,-200.0,0.00029755,2]
[379111571,1755148237730,-195.79248987,0.00029755,2]
[379111572,1755148237754,-4.20751013,0.00029755,2]
[379111573,1755148237764,-1000.0,0.00029755,2]
[379111574,1755148237774,-200.0,0.00029755,2]
[379111575,1755148237786,-200.0,0.00029755,2]
[379111576,1755148237797,-200.0,0.00029755,2]
[379111577,1755148237807,-139.77240515,0.00029755,2]
[379111592,1755148239453,-60.22759485,0.00029755,2]
[379111593,1755148239463,-200.0,0.00029755,2]
[379111594,1755148239473,-47.30451788,0.00029755,2]
[379111595,1755148239485,-152.69548212,0.00029755,2]
[379111596,1755148239495,-200.0,0.00029755,2]
[379111597,1755148239505,-200.0,0.00029755,2]
[379111598,1755148239515,-200.0,0.00029755,2]
[379111599,1755148239524,-200.0,0.00029755,2]
[379111600,1755148239534,-200.0,0.00029755,2]
[379111601,1755148239544,-200.0,0.00029755,2]
[379111602,1755148239554,-200.0,0.00029755,2]
[379111603,1755148239564,-200.0,0.00029755,2]
[379111604,1755148239574,-200.0,0.00029755,2]
[379111605,1755148239584,-182.2988556,0.00029755,2]
[379111606,1755148239596,-95.05793492,0.00029755,2]
[379111607,1755148239606,-200.0,0.00029755,2]
[379111608,1755148239616,-200.0,0.00029755,2]
[379111609,1755148239627,-200.0,0.00029755,2]
[379111610,1755148239637,-151.0,0.00029755,2]
[379111611,1755148239647,-150.0,0.00029999,2]
[379111612,1755148239657,-300.0,0.0003,2]
[379111613,1755148239667,-379.0,0.0003,2]
[379111614,1755148239678,-149.10711039,0.000301,3]
[379111615,1755148239693,-2255.18294099,0.000301,3]
[379111616,1755148239778,-3108.70994862,0.000301,3]
[379111617,1755148239791,-154.62,0.00030137,2]
[379111618,1755148239801,-105.64654179,0.00030267,2]
[379111619,1755148239833,-3067.37085821,0.00030267,2]
[379111620,1755148239843,-1267.2451,0.00030267,2]
[379111621,1755148239855,-500.0,0.00030268,5]
[379111622,1755148239865,-250.80361079,0.00030291,2]
[379111623,1755148239875,-158.69,0.00030302,2]
[379111624,1755148239885,-151.0,0.00030303,2]
[379111625,1755148239895,-3250.74427306,0.00030367,2]
[379111626,1755148239908,-1749.25572694,0.00030367,2]
[379111627,1755148239917,-666.0,0.00030391,3]
[379111628,1755148239927,-503.0,0.000304,11]
[379111629,1755148239938,-1000.0,0.00030406,2]
[379111630,1755148239948,-150.0,0.00030584,2]
[379111632,1755148239958,-211.86673127,0.000306,3]
[379111633,1755148239968,-5513.0,0.000307,5]
[379111634,1755148239978,-267.39,0.00030882,2]
[379111635,1755148239988,-150.0,0.00030949,2]
[379111636,1755148239998,-187.77017969,0.00031,2]
[379111637,1755148240008,-181.52425955,0.00031,2]
[379111638,1755148240018,-500.0,0.00031,2]
[379111639,1755148240028,-329.31264966,0.00031,2]
[379111640,1755148240037,-346.56733789,0.00031001,2]
[379111641,1755148240050,-907.43266211,0.00031001,2]
[379111642,1755148240061,-2028.0,0.00031001,2]
[379111643,1755148240071,-3369.0,0.00031001,2]
[379111644,1755148240081,-210.42,0.00031001,2]
[379111645,1755148240090,-1172.0,0.00031001,2]
[379111646,1755148240100,-2653.34818789,0.00031026,2]
[379111647,1755148240170,-1137.04560283,0.00031026,2]
[379111684,1755148242487,-2994.40889782,0.00028026,2]
[379111685,1755148242499,-9932.09547715,0.00028026,2]
[379111686,1755148242740,-286.85660838,0.00028026,2]
[379111687,1755148242788,-2485.83801665,0.00028026,2]
[379111688,1755148242798,-124.16920928,0.00031026,2]
[379111689,1755148242809,-6086.0,0.00031026,2]
[379111690,1755148242820,-311.1,0.00031124,2]
[379111691,1755148242830,-160.0,0.00031124,2]
[379111692,1755148242839,-287.61899177,0.00031124,2]
[379111694,1755148242850,-810.0,0.00031126,2]
[379111696,1755148242859,-150.0,0.00031369,2]
[379111697,1755148242870,-158.69,0.00031503,2]
[379111698,1755148242881,-261.4,0.00031525,2]
[379111699,1755148242891,-2028.18840898,0.000319,2]
[379111700,1755148242903,-3735.62920498,0.000319,2]
[379111701,1755148243075,-1220.42492389,0.000319,2]
[379111707,1755148245589,-4176.61611355,0.000319,2]
[379111708,1755148245677,-1192.9972,0.000319,2]
[379111709,1755148245735,-1079.2374163,0.000319,2]
[379111710,1755148245744,-503.0,0.0003195,12]
[379111711,1755148245753,-210.8,0.00031983,80]
[379111712,1755148245762,-2592.4061084,0.00032,3]
[379111713,1755148245774,-1346.95162328,0.00032,3]
[379111714,1755148308783,250.0,0.00015,2]
[379111716,1755148428830,5000.0,0.0001,5]
[379111719,1755148573499,154.62,0.00013699,2]
[379111723,1755148934381,200.0,0.0002,2]
[379111724,1755148949524,200.0,0.0002,2]
[379111725,1755148965821,253.57,0.0002,2]
[379111726,1755149038389,8108.85108056,0.00018999,2]
[379111728,1755149091128,1683.27,0.00024,120]
[379111730,1755149109023,210195.95891944,0.00019,2]
[379111731,1755149149112,-1484.3975937,0.00019,2]
[379111732,1755149153354,189.55258765,0.00015,10]
[379111744,1755149204567,429.75450662,0.00018,3]
[379111745,1755149234990,1432.93289072,0.0002,5]
[379111746,1755149237097,-273.5688,0.00018999,2]
[379111747,1755149237133,-300.0,0.00018999,2]
[379111748,1755149237167,-300.0,0.00018999,2]
[379111749,1755149237201,-670.0,0.00018999,2]
[379111750,1755149237235,-204.28832139,0.00018999,2]
[379111751,1755149237270,-32.39344961,0.00018999,2]
[379111752,1755149238381,-148.74100462,0.00018999,2]
[379111753,1755149238404,-238.20428345,0.00018999,2]
[379111754,1755149238427,-89.0446336,0.00018999,2]
[379111755,1755149261352,28652.90033564,0.0002,5]
[379111756,1755149261378,50000.0,0.0002,5]
[379111757,1755149261404,50000.0,0.0002,5]
[379111758,1755149269042,730.99257992,0.00013,15]
[379111759,1755149270896,5648.07425044,0.00018,2]
[379111760,1755149270917,6108.21425044,0.00018,2]
[379111761,1755149270940,6108.21425044,0.00018,2]
[379111762,1755149270962,6108.21425044,0.00018,2]
[379111763,1755149270985,6108.21425044,0.00018,2]
[379111764,1755149271007,1542.70892868,0.00018,2]
[379111768,1755149309941,79.45483243,0.0002,7]
[379111771,1755149315917,350.11518596,0.0001901,7]
[379111772,1755149317399,438.81815004,0.00022,120]
[379111778,1755149338337,-50000.0,0.0002,5]
[379111786,1755149347405,-41072.45440339,0.0002,5]
[379111787,1755149347431,-2786.33239334,0.0002,7]
[379111788,1755149347458,-516.68454878,0.0002,7]
[379111789,1755149348121,-250.0,0.00018999,2]
[379111790,1755149348144,-300.0,0.00018999,2]
[379111791,1755149348165,-141.47422117,0.00018999,2]
[379111792,1755149348186,-500.0,0.00018999,2]
[379111793,1755149348208,-6763.46928831,0.00019,2]
[379111816,1755149432091,-254.84106593,0.000189,2]
[379111817,1755149432112,-204.99893407,0.00018999,2]
[379111818,1755149432166,-95.00106593,0.00018999,2]
[379111819,1755149432176,-250.0,0.00018999,2]
[379111820,1755149432186,-1200.0,0.00018999,2]
[379111821,1755149432196,-201652.51415177,0.00019,2]
[379111822,1755149432205,-182.3792,0.00019,2]
[379111823,1755149432215,-182.3792,0.00019,2]
[379111824,1755149432224,-182.3792,0.00019,2]
[379111825,1755149432233,-1015.68889516,0.000194,2]
[379111826,1755149432242,-162.58,0.00019863,2]
[379111827,1755149432254,-20008.32712291,0.0002,2]
[379111828,1755149432263,-179.55630014,0.00020609,2]
[379111829,1755149432272,-151.0,0.00020648,2]
[379111830,1755149432283,-151.0,0.00020709,2]
[379111831,1755149432293,-151.0,0.00020781,2]
[379111832,1755149432302,-1680.0,0.0002081,2]
[379111833,1755149432312,-250.0,0.00020899,2]
[379111834,1755149432322,-300.0,0.00020899,2]
[379111835,1755149432332,-12443.6974202,0.000209,2]
[379111836,1755149432342,-200.0,0.00021,2]
[379111837,1755149432351,-501.68109865,0.00021,2]
[379111838,1755149432361,-159.93239292,0.00021,2]
[379111839,1755149432371,-1168.22359228,0.00021,2]
[379111840,1755149432381,-503.0,0.000211,2]
[379111841,1755149432390,-508.0,0.000211,2]
[379111842,1755149432400,-515.0,0.000211,2]
[379111843,1755149432409,-501.0,0.000211,2]
[379111844,1755149432419,-501.0,0.000211,2]
[379111845,1755149432429,-504.0,0.000211,2]
[379111846,1755149432439,-417.0,0.000211,2]
[379111847,1755149432448,-217.36846964,0.000215,2]
[379111848,1755149432458,-167.27,0.00021523,2]
[379111849,1755149432467,-5000.0,0.00021918,2]
[379111850,1755149432477,-250.0,0.00021918,2]
[379111851,1755149432486,-520.17900091,0.00021918,2]
[379111852,1755149432496,-15639.03364653,0.0002199,2]
[379111853,1755149432506,-777.55129872,0.00022,7]
[379111854,1755149432515,-500.0,0.00022,2]
[379111855,1755149432525,-402.90472392,0.00022,20]
[379111856,1755149432542,-165.57,0.00022074,2]
[379111857,1755149432560,-706.99337237,0.00022085,2]
[379111858,1755149432569,-156.74688272,0.000226,2]
[379111859,1755149432578,-467.8374,0.00022649,2]
[379111860,1755149432588,-2351.0,0.00022793,2]
[379111861,1755149432599,-229.15,0.00022897,2]
[379111862,1755149432612,-635.0,0.00022903,2]
[379111863,1755149432626,-503.0,0.00023,3]
[379111864,1755149432637,-619.7480934,0.00023,7]
[379111865,1755149432646,-12443.69742013,0.00023042,2]
[379111866,1755149432655,-150.99,0.00023368,2]
[379111867,1755149432665,-8510.39299703,0.00023368,2]
[379111868,1755149432677,-10677.53700297,0.00023368,2]
[379111869,1755149432687,-5714.92,0.00023368,2]
[379111870,1755149432696,-9999.99,0.00023368,2]
[379111871,1755149432706,-345.81,0.00023368,2]
[379111872,1755149432715,-500.0,0.00023373,2]
[379111873,1755149432725,-500.8916241,0.00023373,2]
[379111874,1755149432735,-500.0,0.00023373,2]
[379111875,1755149432749,-500.0,0.00023373,2]